[Event "German Bundesliga 2023-24"]
[Site "Germany"]
[Date "2024.02.25"]
[Round "11.61"]
[White "Vogel, Roven"]
[Black "Gumularz, Szymon"]
[Result "1/2-1/2"]
[ECO "E71"]
[WhiteElo "2471"]
[BlackElo "2580"]
[Annotator "TA"]
[PlyCount "92"]
[EventDate "2023.10.20"]
[EventType "team-tourn"]
[EventCountry "GER"]
[SourceTitle "playchess.com"]
[Source "ChessBase"]
[SourceQuality "1"]
[TimeControl "40/6000+30:3000+30"]

{[%evp 55,92,320,418,422,527,654,676,664,715,710,683,429,421,368,432,404,406,76,63,100,112,138,247,247,236,0,0,-59,-59,-65,-82,-65,-74,-69,0,0,0,0,0]} 1. d4 {[%emt 0:00:05]} Nf6 {[%emt 0:00:35]} 2. c4 {[%emt 0:00:08]} g6 {[%emt 0:00:04]} 3. Nc3 {[%emt 0:00:09]} Bg7 {[%emt 0:00:05]} 4. e4 {[%emt 0:00:22]} d6 {[%emt 0:00:08]} 5. h3 {[%emt 0:00:09]} O-O {[%emt 0:00:21]} 6. Be3 {[%emt 0:00:16]} e5 {[%emt 0:01:13]} 7. d5 {[%emt 0:00:16]} Na6 {[%emt 0:00:07] The main line 7...Na6 scores better than 7...a5.} 8. g4 {[%emt 0:02:00] E71: King's Indian: 4 e4 d6 5 h3.} Nc5 {[%emt 0:00:07]} 9. f3 {[%emt 0:00:59]} a5 {[%emt 0:00:07]} 10. Nge2 {[%emt 0:01:21]} c6 {[%emt 0:02:28]} 11. Qd2 {[%emt 0:03:21]} cxd5 {[%emt 0:21:50]} 12. cxd5 {[%emt 0:00:32]} Bd7 {[%emt 0:03:12]} 13. Ng3 {[%emt 0:02:49]} h5 {[%emt 0:09:08]} 14. Rg1 {[%emt 0:23:52]} h4 {[%emt 0:00:55]} 15. Nh1 {[%emt 0:00:44]} Nh7 {[%emt 0:01:11]} 16. O-O-O $146 {[%emt 0:03:01]} ({Predecessor:} 16. Nf2 a4 17. g5 Qa5 18. Ng4 b5 19. Rc1 Rfc8 20. Be2 a3 21. b3 b4 22. Nd1 {1-0 Ciorgovean,I (2276)-Harsha,B (2547) Titled Tuesday intern op 17th May Early blitz 2022 (4)}) 16... Rb8 {[%emt 0:01:53]} 17. Bb5 {[%emt 0:05:40]} Bxb5 {[%emt 0:02:29]} 18. Nxb5 {[%emt 0:00:56]} Qd7 {[%emt 0:00:24]} 19. Qe2 {[%emt 0:05:35]} Rfc8 {[%emt 0:05:16]} 20. Kb1 {[%emt 0:00:39]} Bf6 {[%emt 0:00:47]} 21. g5 {[%emt 0:01:21]} Bd8 {[%emt 0:00:05]} 22. Nf2 {[%emt 0:04:46]} Na4 {[%emt 0:00:47]} 23. f4 {[%emt 0:08:25]} Bb6 {[%emt 0:28:50]} 24. Bxb6 {[%emt 0:01:05]} Nxb6 {[%emt 0:00:02]} 25. fxe5 {[%emt 0:03:30]} dxe5 {[%emt 0:00:28]} 26. Na7 {[%emt 0:08:02]} Rf8 {[%emt 0:12:30]} 27. Ng4 {[%emt 0:00:54]} Qe7 {[%emt 0:00:16]} 28. d6 {[%emt 0:08:27]} Qxg5 {[%emt 0:01:18]} 29. Qb5 {[%emt 0:00:57]} Nc8 {[%emt 0:04:26]} 30. Nxc8 $1 {[%emt 0:02:13]} (30. Nxe5 Nxa7 31. Qd5 (31. Qxa5 Qe3 $11) 31... Nf6 $16) (30. Nc6 Nxd6 $11 (30... bxc6 $2 31. Qxb8 Nxd6 32. Qxd6 $18) (30... bxc6 $2 31. Qxb8 Ne7 32. Qc7 $18)) 30... Rbxc8 {[%emt 0:00:04]} 31. Nxe5 {[%emt 0:00:32]} Qe3 {[%emt 0:04:04]} 32. Qd5 {[%emt 0:02:48]} (32. Qxa5 $2 Rc5 33. Qa7 Rc1+ (33... Qxe4+ 34. Nd3 $15) 34. Rxc1 Qxa7 $19) 32... Kg7 {[%emt 0:00:43]} 33. Qxb7 {[%emt 0:10:33]} Ng5 {[%emt 0:00:31]} 34. Rxg5 {[%emt 0:01:42]} Qxg5 {[%emt 0:00:20]} 35. Nxf7 $1 {[%emt 0:00:16]} Qh5 {[%emt 0:06:55]} 36. Ng5+ $2 {[%emt 0:05:09]} (36. Ne5+ $18 {and the rest is easy.} Kh8 37. Qd5) 36... Kh8 $16 {[%emt 0:01:16]} 37. Qd5 $1 {[%emt 0:00:18]} Qe2 {[%emt 0:02:00]} 38. a3 {[%emt 0:02:15]} (38. d7 $2 Qc2+ 39. Ka1 Qc1+ 40. Rxc1 Rxc1#) 38... Rc2 {[%emt 0:00:25] [#]} (38... Rb8 $16 39. Qe5+ Kg8 40. Qd5+ Kh8) 39. Qd4+ $1 $18 {[%emt 0:01:23]} (39. d7 $2 Rxb2+ 40. Ka1 Ra2+ 41. Qxa2 Qxd1+ 42. Qb1 Qxd7 $19) 39... Kg8 {[%emt 0:00:03] [#]} 40. Ne6 $2 {[%emt 0:01:11]} (40. Qd5+ Kh8 41. Qd4+ (41. d7 $2 Rxb2+ 42. Ka1 Ra2+ 43. Qxa2 Qxd1+ 44. Qb1 Qxd7 $19) 41... Kg8 $16) ({Only move:} 40. Ka2 $1 $18 {And now Qd5+ would win.} Rb8 (40... Rxb2+ $2 41. Qxb2 Qxd1 42. Ne6 $18) 41. Qd5+ Kg7 42. Qf7+ (42. Qe5+ Kh6 $11) 42... Kh6 43. Qh7+ Kxg5 44. Rg1+ Kf4 45. Qxh4+ Ke3 46. Rg3+ Kd4 47. Qf6+ Kc5 48. Qe5+ Kb6 (48... Kc6 49. Qd5+ Kb6 50. Rb3+ Ka7 51. Qxa5+ Qa6 52. Qxa6+ Kxa6 53. Rxb8 $18) 49. d7 (49. Rxg6 $2 Qc4+ 50. Kb1 Rc1#) (49. Rb3+ Ka6 $11) 49... Rxb2+ (49... Rd8 50. Rb3+ Ka7 51. Qd4+ Ka8 52. Qd5+) 50. Qxb2+ Qxb2+ 51. Kxb2 Kc7+ 52. Rb3) 40... Rf7 $11 {[%emt 0:02:26]} 41. Rg1 {[%emt 0:02:28]} (41. Ka2 $11 Rb7 (41... Rxb2+ 42. Qxb2 Qc4+ 43. Ka1 $18) 42. Rb1) 41... Rxb2+ $1 $15 {[%emt 0:05:16]} 42. Qxb2 {[%emt 0:00:17]} Qxe4+ {[%emt 0:00:06]} 43. Ka1 {[%emt 0:01:57]} (43. Qc2 $2 Rb7+ (43... Qxe6 $2 44. Rxg6+ $18) 44. Kc1 Qe3+ (44... Qxe6 $2 45. Rxg6+ $18) 45. Kd1 Qxg1+ 46. Ke2 Qh2+ 47. Kd3 Qxh3+ (47... Qxd6+ $2 48. Nd4 $19) 48. Kd4 Qxe6 $19) 43... Qxe6 {[%emt 0:03:13]} 44. Qd2 {[%emt 0:07:55]} (44. Qd4 Qxh3 45. Ka2 (45. Rxg6+ $2 Kh7 $19) 45... Qe6+ 46. Ka1 h3 $19) 44... Kh7 {[%emt 0:05:56]} (44... Qxh3 $2 {too greedy.} 45. Rxg6+ (45. Qxa5 $2 {loses.} Rf1+ 46. Rxf1 Qxf1+ 47. Kb2 Qf6+ 48. Kc1 Qxd6 $19) 45... Rg7 46. d7 (46. Qd5+ Kh7 $18) 46... Qf1+ 47. Kb2 Qb5+ 48. Kc1 $18) (44... Rd7 $1 $15 45. Qa2 Qxa2+ (45... Rxd6 46. Rxg6+ Kf7 47. Rxe6 $11) 46. Kxa2 Rxd6) 45. Rd1 $1 $11 {[%emt 0:11:42]} Qxh3 {[%emt 0:13:57]} 46. d7 $1 {[%emt 0:02:42]} Qxa3+ {[%emt 0:11:06]} 1/2-1/2

[Event "German Bundesliga 2023-24"]
[Site "Germany"]
[Date "2024.02.25"]
[Round "11.62"]
[White "Meshkovs, Nikita"]
[Black "Neef, Maximilian"]
[Result "1/2-1/2"]
[ECO "A45"]
[WhiteElo "2526"]
[BlackElo "2466"]
[Annotator "TA"]
[PlyCount "111"]
[EventDate "2023.10.20"]
[EventType "team-tourn"]
[EventCountry "GER"]
[SourceTitle "playchess.com"]
[Source "ChessBase"]
[SourceQuality "1"]
[TimeControl "40/6000+30:3000+30"]

{[%evp 28,111,0,0,0,0,0,0,6,0,16,0,0,0,16,0,0,0,0,0,31,22,57,68,58,61,54,49,88,20,24,15,12,14,15,17,18,18,66,59,102,109,103,106,93,78,100,26,29,21,21,21,26,10,8,10,9,14,15,14,8,0,0,0,0,0,225,225,137,39,40,0,0,0,0,0,0,0,0,0,0,0,0,0,0,0]} 1. d4 {[%emt 0:00:04]} Nf6 {[%emt 0:00:07]} 2. Bg5 {[%emt 0:00:09]} Ne4 {[%emt 0:01:30]} 3. Bf4 {[%emt 0:00:06]} Nc6 {[%emt 0:00:22]} 4. Nf3 {[%emt 0:04:00]} e6 {[%emt 0:07:38]} 5. h4 $146 {[%emt 0:15:26]} ({Predecessor:} 5. h3 d5 6. e3 Bd6 7. Bxd6 cxd6 8. c4 Qa5+ 9. Nbd2 Nxd2 10. Qxd2 dxc4 11. Bxc4 Qxd2+ 12. Kxd2 {½-½ Ravichandran,S (2387)-Ginsburg,M (2387) Los Angeles Metropolitan 11th 2011 (8)}) 5... d5 {[%emt 0:03:32]} 6. Nbd2 {[%emt 0:04:06] A45: Trompowsky Attack.} Bd6 {[%emt 0:02:00]} 7. g3 {[%emt 0:07:03]} Qf6 {[%emt 0:08:55]} 8. e3 {[%emt 0:04:33]} e5 {[%emt 0:12:49]} 9. Nxe4 {[%emt 0:04:59]} dxe4 {[%emt 0:00:20]} 10. Nxe5 {[%emt 0:00:59]} Nxe5 {[%emt 0:00:59]} 11. dxe5 {[%emt 0:00:18]} Bxe5 {[%emt 0:00:29]} 12. Bxe5 {[%emt 0:01:07]} Qxe5 {[%emt 0:00:07]} 13. Qd4 {[%emt 0:01:33]} Qxd4 {[%emt 0:01:38]} 14. exd4 {[%emt 0:00:03]} Bg4 {[%emt 0:07:57]} 15. Kd2 {[%emt 0:11:42]} f5 {[%emt 0:06:53]} 16. Ke3 {[%emt 0:05:14]} Rf8 {[%emt 0:05:30]} 17. Re1 {[%emt 0:06:21]} O-O-O {[%emt 0:05:51]} 18. Be2 {[%emt 0:01:07]} Rd6 {[%emt 0:01:02]} 19. h5 {[%emt 0:13:18]} Rb6 {[%emt 0:08:06]} 20. b3 {[%emt 0:01:53]} Rc6 {[%emt 0:00:58]} 21. Kd2 {[%emt 0:01:16]} Bxe2 {[%emt 0:11:29]} 22. Rxe2 {[%emt 0:00:09]} Rd8 {[%emt 0:00:09]} 23. c3 {[%emt 0:00:24]} Ra6 {[%emt 0:01:58]} 24. Ke3 {[%emt 0:00:48]} c5 {[%emt 0:00:31]} 25. dxc5 {[%emt 0:01:38]} Rd5 {[%emt 0:13:34]} 26. Kf4 {[%emt 0:04:50]} Rxc5 {[%emt 0:00:42]} 27. Rd1 {[%emt 0:00:02]} Rh6 {[%emt 0:04:36]} 28. Kg5 {[%emt 0:05:21]} ({White should try} 28. Red2 $1 $16 {[%cal Rd2d8]}) 28... Rf6 $1 $11 {[%emt 0:01:39]} 29. c4 {[%emt 0:03:18]} f4+ {[%emt 0:00:25]} 30. Kg4 {[%emt 0:00:36]} fxg3 {[%emt 0:00:12]} 31. fxg3 {[%emt 0:00:06]} Re5 {[%emt 0:00:30]} 32. Rd5 {[%emt 0:01:09]} Rxd5 {[%emt 0:02:08]} (32... Re7 $11) 33. cxd5 $14 {[%emt 0:00:02]} Rd6 {[%emt 0:00:00]} 34. Rxe4 {[%emt 0:01:41]} Rxd5 {[%emt 0:00:02]} 35. Re8+ $1 {[%emt 0:02:16]} Kc7 {[%emt 0:01:32]} 36. Rg8 $1 {[%emt 0:02:52]} Rd4+ {[%emt 0:00:51] [#]} 37. Kg5 {[%emt 0:00:42]} ({Better is} 37. Kf3 $1 $16 Rd7 38. Kg4) 37... Rd5+ $11 {[%emt 0:00:08]} 38. Kh4 {[%emt 0:00:11]} Rd7 $1 {[%emt 0:00:15]} 39. g4 {[%emt 0:00:33]} Kd6 {[%emt 0:00:51]} 40. Rh8 {[%emt 0:04:50]} h6 {[%emt 0:01:41]} 41. g5 {[%emt 0:50:30]} hxg5+ {[%emt 0:13:47]} 42. Kxg5 {[%emt 0:00:00]} Ke7 {[%emt 0:00:12]} 43. Kg6 {[%emt 0:00:00]} Rd2 $1 {[%emt 0:00:50]} 44. Rg8 {[%emt 0:00:00]} (44. Kxg7 Rg2+ 45. Kh6 Rxa2) 44... Rg2+ {[%emt 0:05:34]} 45. Kh7 {[%emt 0:00:00]} Rxa2 {[%emt 0:00:20]} 46. Rxg7+ {[%emt 0:00:00]} Kf8 $2 {[%emt 0:10:32]} (46... Kf6 $11 {and Black is okay.}) 47. Rxb7 $18 {[%emt 0:00:00]} a5 {[%emt 0:02:33] [#]} 48. h6 {[%emt 0:00:00]} (48. Kg6 $1 $16 {Black must now prevent Rb8+.} Rg2+ 49. Kf6 Rf2+ 50. Ke6) 48... Rg2 $1 $14 {[%emt 0:06:20]} 49. Rb5 {[%emt 0:00:00]} Rg3 {[%emt 0:01:23]} 50. Rb8+ {[%emt 0:00:00]} Kf7 {[%emt 0:00:08]} 51. Kh8 {[%emt 0:00:00]} Rg6 {[%emt 0:02:01]} 52. Rb7+ {[%emt 0:00:00]} Kf8 {[%emt 0:00:10]} 53. h7 {[%emt 0:00:00]} Rg5 {[%emt 0:03:42]} 54. Rb8+ {[%emt 0:00:00]} Kf7 {[%emt 0:00:02]} 55. Rb7+ {[%emt 0:00:00]} Kf8 {[%emt 0:00:06]} 56. Rb8+ {[%emt 0:00:00]} 1/2-1/2

[Event "German Bundesliga 2023-24"]
[Site "Germany"]
[Date "2024.02.25"]
[Round "11.63"]
[White "Maiwald, Jens-Uwe"]
[Black "Thybo, Jesper Sondergaard"]
[Result "0-1"]
[ECO "B31"]
[WhiteElo "2445"]
[BlackElo "2522"]
[Annotator "TA"]
[PlyCount "114"]
[EventDate "2023.10.20"]
[EventType "team-tourn"]
[EventCountry "GER"]
[SourceTitle "playchess.com"]
[Source "ChessBase"]
[SourceQuality "1"]
[TimeControl "40/6000+30:3000+30"]

{[%evp 27,114,-16,-14,-16,-20,-15,-42,-56,-35,-47,-25,-84,-88,-88,-101,-104,-91,-123,-58,-54,-29,-33,-20,-14,-10,-6,0,0,0,0,0,-50,-45,-76,-63,-50,-52,-64,-60,-56,-59,-58,-59,-62,-8,-8,-8,-8,-8,-8,-8,-29940,-9629,-29942,-29943,-29943,-29941,-29959,-29960,-29958,-29959,-29964,-29964,-29972,-29973,-29973,-29975,-29975,-29976,-29976,-29977,-29978,-29979,-29979,-29979,-29979,-29980,-29980,-29981,-29981,-29982,-29982,-29983,-29983,-29984,-29984,-29985,-29985,0]} 1. e4 {[%emt 0:00:04]} c5 {[%emt 0:00:19]} 2. Nf3 {[%emt 0:00:21]} Nc6 {[%emt 0:00:08]} 3. Bb5 {[%emt 0:00:15]} g6 {[%emt 0:00:13]} 4. O-O {[%emt 0:00:35]} Bg7 {[%emt 0:00:05]} 5. c3 {[%emt 0:00:38]} Nf6 {[%emt 0:00:46]} 6. Re1 {[%emt 0:00:31]} O-O {[%emt 0:00:21]} 7. h3 {[%emt 0:00:31]} e5 $1 {[%emt 0:03:03] The main line 7...e5 scores better than 7...Qb6.} 8. d3 {[%emt 0:00:20]} d6 {[%emt 0:01:48]} 9. a4 {[%emt 0:06:22] B31: Sicilian: 2...Nc6 3 Bb5 g6.} Re8 $5 $146 {[%emt 0:09:53][%mdl 8] An interesting novelty.} ({Predecessor:} 9... Qc7 10. Bc4 h6 11. Na3 Kh7 12. Rb1 Be6 13. Bxe6 fxe6 14. b4 cxb4 15. cxb4 a5 16. bxa5 Qxa5 17. Rxb7 {1-0 Duda,J (2760)-Ivic,V (2606) Wch Blitz Warsaw 2021 (8)}) 10. Bg5 {[%emt 0:05:13]} h6 {[%emt 0:01:54]} 11. Bh4 {[%emt 0:05:31]} Be6 {[%emt 0:13:38]} 12. Nbd2 {[%emt 0:02:18]} Kh7 {[%emt 0:07:43]} 13. d4 {[%emt 0:17:00]} cxd4 {[%emt 0:01:35]} 14. cxd4 {[%emt 0:00:00]} exd4 {[%emt 0:00:09]} 15. Bxc6 {[%emt 0:01:06]} bxc6 {[%emt 0:00:20]} 16. Nxd4 {[%emt 0:00:17]} Qb6 {[%emt 0:02:32]} 17. N2f3 {[%emt 0:14:24]} Bd7 {[%emt 0:09:46]} 18. a5 {[%emt 0:11:15]} Qb7 {[%emt 0:05:21]} 19. Qd3 {[%emt 0:10:12]} (19. e5 $11 dxe5 20. Nxe5) 19... c5 $17 {[%emt 0:05:11]} (19... Qxb2 $2 20. Bxf6 (20. Reb1 Qxa1 21. Rxa1 Nxe4 $18) 20... Bxf6 21. Reb1 $18) 20. a6 {[%emt 0:00:13]} Qb6 {[%emt 0:00:42]} (20... Qxb2 $2 21. Reb1 $18) 21. Bxf6 {[%emt 0:03:24]} Bxf6 {[%emt 0:00:13]} 22. Nc2 {[%emt 0:00:05]} Bb5 {[%emt 0:02:10]} (22... Qxb2 $6 23. Rab1 (23. Qxd6 Be6 $17) 23... Qa2 24. Ne3 $15) ({Black should try} 22... Bc6 $1 $17 23. Rab1 Bg7 (23... Bxb2 24. Na3 $11)) 23. Qd5 $1 $15 {[%emt 0:01:51]} Kg7 {[%emt 0:00:18]} (23... Bxb2 24. Rab1 (24. Qxf7+ Bg7 $16) 24... Bg7 (24... Bxa6 $2 25. Qxf7+ Kh8 26. Nh4 $18) 25. Qxf7 Qxa6 26. Nh4 $11) (23... Bxa6 24. Qxf7+ Bg7 25. Nh4 $11) 24. e5 $1 {[%emt 0:10:15]} dxe5 {[%emt 0:00:07]} 25. Nxe5 {[%emt 0:00:03]} Qc7 {[%emt 0:08:18]} (25... Bxa6 26. Qxf7+ Kh8 27. Nxg6#) 26. Ng4 $1 {[%emt 0:01:03]} Rad8 {[%emt 0:01:48]} ({Don't play} 26... Bxb2 $6 27. Rab1 Rxe1+ 28. Nxe1 $16) 27. Qb3 {[%emt 0:00:47]} Rxe1+ {[%emt 0:10:24]} 28. Rxe1 {[%emt 0:00:14]} Qa5 {[%emt 0:00:59]} 29. Nxf6 {[%emt 0:04:26]} (29. Qe3 $11 Qxa6 (29... Bxb2 30. Qxh6+ Kg8 31. Qh4 $11) 30. Qxh6+ Kg8 31. Nce3) 29... Rd3 $1 $15 {[%emt 0:01:41]} 30. Ra1 {[%emt 0:03:01]} Rxb3 {[%emt 0:01:21]} 31. Rxa5 {[%emt 0:00:07]} Kxf6 {[%emt 0:00:14]} 32. Na3 {[%emt 0:00:21]} Bd3 {[%emt 0:02:16]} 33. Rxc5 {[%emt 0:00:05]} Rxb2 {[%emt 0:00:21]} 34. Rc6+ {[%emt 0:00:18]} Kg7 {[%emt 0:05:17]} 35. Nc4 $1 {[%emt 0:01:15]} Rc2 {[%emt 0:00:55]} (35... Re2 $1 $15) 36. Ne5 $11 {[%emt 0:00:08]} Rxc6 {[%emt 0:00:09]} 37. Nxc6 {[%emt 0:00:07]} Bb5 {[%emt 0:00:50]} 38. Nxa7 {[%emt 0:04:19]} Bd7 {[%emt 0:00:11]} 39. f4 $2 {[%emt 0:00:48][%mdl 8192]} (39. Kf1 $11 Be6 40. f4) 39... Kf6 {[%emt 0:00:43]} 40. Kf2 {[%emt 0:02:51]} Ke6 {[%emt 0:00:21]} 41. Kg3 {[%emt 0:23:05]} Kd5 {[%emt 0:20:41]} 42. f5 {[%emt 0:01:49]} Kc5 {[%emt 0:01:06]} 43. Kf4 {[%emt 0:08:14]} Kb6 $1 {[%emt 0:00:55]} 44. g4 {[%emt 0:02:46]} Kxa7 {[%emt 0:08:19]} 45. Ke5 {[%emt 0:03:23]} gxf5 {[%emt 0:01:31]} 46. gxf5 {[%emt 0:00:06]} Kxa6 {[%emt 0:00:35]} 47. Kf6 {[%emt 0:00:45]} h5 {[%emt 0:00:49]} 48. h4 {[%emt 0:00:53]} Kb5 {[%emt 0:00:20]} 49. Kg5 {[%emt 0:00:20]} Kc5 {[%emt 0:00:26]} 50. Kxh5 {[%emt 0:00:30]} Bxf5 {[%emt 0:01:46]} 51. Kg5 {[%emt 0:00:05] [#]} Bg6 $1 {[%emt 0:00:08]} 52. h5 {[%emt 0:00:29]} Bxh5 $1 {[%emt 0:00:03]} 53. Kxh5 {[%emt 0:00:03]} Kd5 {[%emt 0:00:08]} 54. Kg5 {[%emt 0:01:33] [#]} Ke5 $1 {[%emt 0:00:05]} 55. Kg4 {[%emt 0:00:10]} Ke4 {[%emt 0:00:04]} 56. Kg3 {[%emt 0:00:09]} f5 {[%emt 0:00:08]} 57. Kf2 {[%emt 0:00:07]} Ke5 $2 {[%emt 0:00:17]} (57... Kf4 {mates} 58. Ke2 Kg3 59. Ke1 Kg2 60. Kd2 f4 61. Kd3 f3 62. Ke4 f2 63. Kf4 f1=Q+ (63... f1=B 64. Kg5 $11) 64. Ke5 Qc4 65. Kf5 Kf3 66. Ke5 Kg4 67. Kf6 Qe4 68. Kf7 Kf5 69. Kg8 Kf6 70. Kh8 Kg6 71. Kg8 Qe8#) 0-1

[Event "German Bundesliga 2023-24"]
[Site "Germany"]
[Date "2024.02.25"]
[Round "11.64"]
[White "Pajeken, Jakob Leon"]
[Black "Tischbierek, Raj"]
[Result "1/2-1/2"]
[ECO "C17"]
[WhiteElo "2426"]
[BlackElo "2423"]
[Annotator "TA"]
[PlyCount "48"]
[EventDate "2023.10.20"]
[EventType "team-tourn"]
[EventCountry "GER"]
[SourceTitle "playchess.com"]
[Source "ChessBase"]
[SourceQuality "1"]
[TimeControl "40/6000+30:3000+30"]

{[%evp 13,48,-4,-2,-21,0,0,0,-7,0,0,26,23,35,31,27,30,35,24,42,26,45,33,51,62,61,56,66,60,76,53,143,53,91,66,123,41,46]} 1. e4 {[%emt 0:00:22]} e6 {[%emt 0:00:13]} 2. d4 {[%emt 0:00:04]} d5 {[%emt 0:00:04]} 3. Nc3 {[%emt 0:00:03]} Bb4 {[%emt 0:00:04]} 4. e5 {[%emt 0:00:16]} c5 {[%emt 0:00:05]} 5. Bd2 {[%emt 0:00:15]} Ne7 {[%emt 0:00:39]} 6. a3 {[%emt 0:00:22]} Bxc3 {[%emt 0:00:52]} 7. Bxc3 {[%emt 0:00:08]} b6 {[%emt 0:01:08]} 8. h4 {[%emt 0:00:11]} Ba6 {[%emt 0:03:11]} 9. Bxa6 {[%emt 0:00:26]} Nxa6 {[%emt 0:00:02]} 10. h5 {[%emt 0:00:50] The position is equal.} h6 {[%emt 0:01:08]} 11. Qd3 {[%emt 0:03:01]} Nb8 {[%emt 0:18:59]} 12. f4 {[%emt 0:02:15]} Qc8 {[%emt 0:03:42]} 13. Nf3 {[%emt 0:16:17]} Qa6 {[%emt 0:01:02]} 14. Qe3 {[%emt 0:06:18]} Nf5 {[%emt 0:04:38]} 15. Qf2 {[%emt 0:01:00]} cxd4 {[%emt 0:01:02]} 16. Bxd4 {[%emt 0:03:33]} Nc6 {[%emt 0:00:30]} 17. O-O-O {[%emt 0:01:20]} O-O-O {[%emt 0:05:31]} 18. g4 {[%emt 0:03:29]} Nfe7 {[%emt 0:00:07]} 19. Kb1 {[%emt 0:02:15]} Kb8 {[%emt 0:01:14]} 20. Rhe1 {[%emt 0:14:00]} Rc8 {[%emt 0:06:11]} 21. Bc3 {[%emt 0:04:58][%cal Of4f5]} Rhd8 {[%emt 0:07:21]} (21... Qa4 $14) 22. Rd3 {[%emt 0:04:36] White is more active.} ({Better is} 22. f5 $1 $16 {[%cal Rf5f6] And now f6 would win.} d4 23. Nxd4 (23. Bxd4 exf5 24. e6 fxe6 $16)) 22... Qb5 {[%emt 0:07:22]} 23. Qd2 {[%emt 0:02:57][%cal Of4f5]} Ka8 {[%emt 0:01:40]} (23... Qa4 $14) 24. Rd1 {[%emt 0:10:22]} (24. f5 $16) 24... Qa4 {[%emt 0:04:23] Weighted Error Value: White=0.14 (very precise) /Black=0.19 (very precise) .  Mistake:       	White=2     	Black=2      Inaccurate:     	---       	Black=2      OK:         	White=7     	Black=4      Best:        	White=1     	---} 1/2-1/2

[Event "German Bundesliga 2023-24"]
[Site "Germany"]
[Date "2024.03.16"]
[Round "12"]
[White "Keymer, Vincent"]
[Black "Fressinet, Laurent"]
[Result "1-0"]
[ECO "D35"]
[WhiteElo "2721"]
[BlackElo "2643"]
[Annotator "TA"]
[PlyCount "93"]
[EventDate "2023.10.20"]
[EventType "team-tourn"]
[EventCountry "GER"]
[SourceTitle "playchess.com"]
[Source "ChessBase"]
[SourceQuality "1"]
[TimeControl "40/6000+30:3000+30"]

{[%evp 18,93,26,25,25,27,24,32,33,25,20,15,35,37,55,49,56,0,0,0,29,30,23,34,33,30,10,25,51,16,65,41,93,36,32,22,87,95,80,73,72,41,72,72,84,84,92,81,152,152,192,191,180,37,62,6,7,0,0,0,0,0,170,170,174,174,175,200,383,354,580,580,4634,4627,4627,4627,4627,2889]} 1. c4 {[%emt 0:01:00]} e6 {[%emt 0:01:00]} 2. Nc3 {[%emt 0:00:00]} d5 {[%emt 0:00:00]} 3. d4 {[%emt 0:00:00]} Nf6 {[%emt 0:00:00]} 4. cxd5 {[%emt 0:00:00]} exd5 {[%emt 0:00:00]} 5. Bg5 {[%emt 0:00:00]} c6 {[%emt 0:00:00]} 6. e3 {[%emt 0:00:30]} Bf5 {[%emt 0:00:30]} 7. Qf3 {[%emt 0:00:30]} Bg6 {[%emt 0:00:00]} 8. Bxf6 {[%emt 0:00:00]} Qxf6 {[%emt 0:00:00]} 9. Qxf6 {[%emt 0:00:00]} gxf6 {[%emt 0:00:00]} 10. h4 {[%emt 0:01:30]} h5 {[%emt 0:09:00]} 11. Rd1 {[%emt 0:04:30]} Nd7 {[%emt 0:08:30]} 12. Bd3 {[%emt 0:00:30]} Rg8 {[%emt 0:03:30] White is slightly better.} 13. Nge2 {[%emt 0:01:30]} Bd6 {[%emt 0:03:30]} 14. Rh3 {[%emt 0:24:30]} Bxd3 {[%emt 0:21:30]} 15. Rxd3 {[%emt 0:00:00]} Rg4 {[%emt 0:01:30][%cal Od7b6]} 16. Kf1 {[%emt 0:18:00]} O-O-O {[%emt 0:08:30]} 17. f3 {[%emt 0:04:30]} (17. Rd2 $14) 17... Rg6 $11 {[%emt 0:05:30]} 18. e4 {[%emt 0:01:30]} Nb6 {[%emt 0:08:30]} 19. exd5 {[%emt 0:02:30]} Nxd5 {[%emt 0:08:30]} 20. Nxd5 {[%emt 0:06:30]} cxd5 {[%emt 0:01:30]} 21. Rb3 {[%emt 0:06:30]} a6 {[%emt 0:12:58] Prevents Rb5.} 22. f4 {[%emt 0:02:30]} Kb8 {[%emt 0:03:48]} 23. Rhg3 {[%emt 0:08:30]} Rdg8 {[%emt 0:06:26]} (23... b5 $11 {feels stronger.}) 24. a4 {[%emt 0:02:30]} Rc8 {[%emt 0:04:23]} (24... Bc7 $14) 25. Rbc3 {[%emt 0:01:30]} (25. Kf2 $16) 25... Re8 {[%emt 0:02:01]} 26. Rge3 {[%emt 0:20:27]} Re4 {[%emt 0:01:37]} (26... Re6 $11 {keeps the balance.}) 27. Rxe4 $16 {[%emt 0:00:13]} dxe4 {[%emt 0:00:39][%mdl 4096] Endgame. [#] KRB-KRN} 28. f5 $1 {[%emt 0:00:30]} Rg4 {[%emt 0:00:31]} 29. g3 {[%emt 0:00:06]} Bb4 {[%emt 0:00:29]} 30. Rc2 {[%emt 0:01:39]} Bd6 {[%emt 0:00:22]} 31. Kf2 {[%emt 0:00:12]} Rg8 {[%emt 0:00:05]} 32. Rc3 {[%emt 0:01:14]} Bb4 {[%emt 0:00:35]} (32... Rg4 $142) 33. Re3 {[%emt 0:00:42]} Re8 {[%emt 0:00:58]} 34. Nc3 {[%emt 0:01:49]} Bxc3 {[%emt 0:00:03]} 35. bxc3 $18 {[%emt 0:00:44] KR-KR} (35. Rxc3 $18 {Ke3 is the strong threat.} Rg8 36. a5) 35... b5 $1 $14 {[%emt 0:00:30]} 36. axb5 {[%emt 0:00:36]} (36. a5 $14) 36... axb5 $11 {[%emt 0:00:30] [#]} 37. g4 $1 {[%emt 0:00:12]} hxg4 {[%emt 0:00:19]} 38. Kg3 {[%emt 0:00:04]} Kc7 {[%emt 0:00:36]} 39. Kf4 {[%emt 0:01:54]} Kd6 $2 {[%emt 0:00:28]} (39... Rg8 $1 $11 {and Black is okay.}) 40. Rxe4 $18 {[%emt 0:00:06]} Rg8 {[%emt 0:00:00]} (40... Rxe4+ $2 41. Kxe4 g3 42. Kf3 $18) 41. Kg3 {[%emt 0:06:32]} Kd5 {[%emt 0:09:12]} 42. Re3 {[%emt 0:10:30]} (42. Rxg4 Rc8 $11) 42... Kc4 $2 {[%emt 0:10:30]} (42... Rb8 {was called for.} 43. Re7 (43. Kxg4 b4 $16) 43... b4 44. cxb4 (44. Kxg4 $2 {loses.} b3 $19) 44... Kxd4) 43. h5 {[%emt 0:00:30][%cal Bh4h5,Bh5h6][%mdl 32]} Rg5 $2 {[%emt 0:06:30] [#]} (43... Kd5 {was worth a try.} 44. Kh4 Rh8) 44. Kh4 $1 {[%emt 0:00:00] Hoping for h6. White is clearly winning.} Rxf5 {[%emt 0:00:30]} 45. h6 {[%emt 0:02:00]} ({Not} 45. Kxg4 Rg5+ 46. Kh4 Rg8 $16) 45... Rf1 {[%emt 0:00:30]} 46. Kxg4 {[%emt 0:00:30]} f5+ {[%emt 0:00:30]} 47. Kh4 {[%emt 0:00:30] Weighted Error Value: White=0.15 (very precise) /Black=0.33.  Loses game:     	---       	Black=1      Mistake:       	White=4     	Black=6      Inaccurate:     	White=2     	Black=4      OK:         	White=9     	Black=7      Best:        	White=4     	---        Strong:       	White=2     	Black=1} 1-0